bitfinex/quotes_BTCUSD_20250218
["timestamp","ask_amount","ask_price","bid_price","bid_amount"]
[1739844882903,0.155641,96376.0,96373.0,0.0832]
[1739844883070,0.89675,96375.0,96374.0,0.10250365]
[1739844883655,0.779245,96375.0,96374.0,0.10250365]
[1739844883859,0.155638,96378.0,96374.0,0.10250365]
[1739844883860,2.292051,96377.0,96374.0,0.10250365]
[1739844884088,2.278351,96377.0,96374.0,0.10550365]
[1739844884297,2.596672,96378.0,96374.0,0.10550365]
[1739844884524,2.148283,96377.0,96374.0,0.10550365]
[1739844884731,2.148283,96377.0,96374.0,0.10950365]
[1739844884934,1.892271,96377.0,96374.0,0.10950365]
[1739844885152,0.155637,96378.0,96374.0,0.10550365]
[1739844885372,2.059859,96377.0,96374.0,0.10550365]
[1739844885544,2.059859,96377.0,96374.0,0.10450365]
[1739844885959,2.059859,96377.0,96374.0,0.10750365]
[1739844886275,2.247809,96377.0,96374.0,0.10450365]
[1739844886500,2.247809,96377.0,96374.0,0.10550365]
[1739844886696,2.077868,96376.0,96374.0,0.10350365]
[1739844886928,2.077868,96376.0,96374.0,0.10550365]
[1739844887047,1.195968,96376.0,96374.0,0.10550365]
[1739844887261,0.897169,96375.0,96374.0,0.10550365]
[1739844887459,1.426003,96375.0,96374.0,0.10550365]
[1739844887882,0.897169,96375.0,96374.0,0.10350365]
[1739844888083,2.224065,96376.0,96374.0,0.10550365]
[1739844888255,1.419679,96375.0,96374.0,0.10550365]
[1739844888579,1.419679,96375.0,96374.0,0.10350365]
[1739844888782,1.419679,96375.0,96374.0,0.10650365]
[1739844888927,1.419679,96375.0,96374.0,0.10550365]
[1739844889334,0.897169,96375.0,96374.0,0.10650365]
[1739844889563,2.24917,96376.0,96374.0,0.10550365]
[1739844889751,1.949497,96376.0,96374.0,0.10750365]
[1739844890403,1.949497,96376.0,96374.0,0.10450365]
[1739844890603,1.949497,96376.0,96374.0,0.10650365]
[1739844891931,0.990728,96375.0,96374.0,0.10650365]
[1739844892130,1.783041,96376.0,96374.0,0.10450365]
[1739844892369,0.155642,96375.0,96374.0,0.10450365]
[1739844892538,2.396811,96377.0,96374.0,0.10550365]
[1739844892746,0.926012,96376.0,96374.0,0.10450365]
[1739844892943,2.048685,96376.0,96374.0,0.10250365]
[1739844893148,1.928685,96376.0,96374.0,0.10450365]
[1739844893369,0.314342,96375.0,96374.0,0.10550365]
[1739844893694,1.908246,96375.0,96374.0,0.10350365]
[1739844893867,1.908246,96375.0,96374.0,0.10284425]
[1739844894072,1.908246,96375.0,96374.0,0.10484425]
[1739844894212,1.908246,96375.0,96374.0,0.10584425]
[1739844894409,1.908246,96375.0,96374.0,0.10384425]
[1739844894981,1.908246,96375.0,96374.0,0.10484425]
[1739844895479,1.908246,96375.0,96374.0,0.10384425]
[1739844896365,1.752604,96375.0,96374.0,0.10384425]
[1739844896704,1.198454,96375.0,96374.0,0.10384425]
[1739844896946,2.313288,96375.0,96374.0,0.10384425]
[1739844899500,2.250308,96375.0,96374.0,0.10384425]
[1739844901412,2.147224,96375.0,96374.0,0.10384425]
[1739844902221,0.315498,96375.0,96374.0,0.18224425]
[1739844902448,0.1587,96375.0,96374.0,0.18224425]
[1739844902621,0.329873,96375.0,96374.0,0.18224425]
[1739844902971,0.314342,96375.0,96374.0,0.18224425]
[1739844903103,0.1587,96375.0,96374.0,0.18224425]
[1739844903319,0.314342,96375.0,96374.0,0.18224425]
[1739844905473,1.187699,96375.0,96374.0,0.18224425]
[1739844907652,1.032057,96375.0,96374.0,0.18224425]
[1739844907858,1.187699,96375.0,96374.0,0.18224425]
[1739844917867,0.571686,96375.0,96374.0,0.18224425]
[1739844919488,0.05,96384.0,96374.0,0.18224425]
[1739844919489,0.2592,96409.0,96374.0,0.23331868]
[1739844919696,0.0284466,96385.0,96384.0,0.1276]
[1739844919868,0.0284466,96385.0,96384.0,0.23010365]
[1739844920089,0.155618,96390.0,96385.0,0.0788]
[1739844920292,0.155618,96390.0,96387.0,0.0788]
[1739844920448,0.15562,96389.0,96388.0,0.10250365]
[1739844921085,1.333669,96389.0,96388.0,0.10250365]
[1739844921277,1.351588,96389.0,96388.0,0.10250365]
[1739844921482,1.35133763,96389.0,96388.0,0.10350365]
[1739844922543,1.35133763,96389.0,96388.0,0.10450365]
[1739844923118,1.35133763,96389.0,96388.0,0.12771402]
[1739844923861,0.589848,96389.0,96388.0,0.12771402]
[1739844924070,0.33270939,96389.0,96388.0,0.12771402]
[1739844924248,0.475516,96389.0,96388.0,0.12771402]
[1739844927247,0.475516,96389.0,96388.0,0.10450365]
[1739844928370,2.858049,96389.0,96388.0,0.002]
[1739844928780,2.337092,96389.0,96388.0,0.002]
[1739844929131,2.337092,96389.0,96388.0,0.001]
[1739844929726,2.309937,96389.0,96388.0,0.001]
[1739844929971,0.155621,96388.0,96379.0,0.3285]
[1739844930179,2.759497,96388.0,96379.0,0.10250365]
[1739844930377,0.155633,96380.0,96379.0,0.10250365]
[1739844930684,0.661279,96380.0,96379.0,0.14136248]
[1739844930903,0.460079,96380.0,96379.0,0.14136248]
[1739844931909,0.460079,96380.0,96379.0,0.10450365]
[1739844933052,0.460079,96380.0,96379.0,0.10850365]
[1739844933267,0.615712,96380.0,96379.0,0.10850365]
[1739844933679,0.615712,96380.0,96379.0,0.10650365]
[1739844934082,0.615712,96380.0,96379.0,0.10950365]
[1739844934300,0.3302227,96380.0,96379.0,0.10950365]
[1739844934492,0.3302227,96380.0,96379.0,0.007]
[1739844934493,0.751896,96380.0,96379.0,0.007]
[1739844934696,0.808974,96380.0,96379.0,0.007]
[1739844935309,0.155637,96378.0,96377.0,0.082]
[1739844938231,0.155637,96378.0,96377.0,0.083]
[1739844938386,0.808978,96378.0,96377.0,0.083]
[1739844938586,0.808978,96378.0,96377.0,0.082]
[1739844938822,0.808978,96378.0,96377.0,0.084]
[1739844939569,0.808978,96378.0,96377.0,0.082]
[1739844939969,0.808978,96378.0,96377.0,0.085]
[1739844942161,0.808978,96378.0,96377.0,0.083]
[1739844942615,0.808978,96378.0,96377.0,0.085]
[1739844942790,0.808978,96378.0,96377.0,0.084]
[1739844943201,0.808978,96378.0,96377.0,0.085]
[1739844946657,1.371193,96378.0,96377.0,0.085]
[1739844952093,1.229362,96378.0,96377.0,0.085]
[1739844952995,1.07153,96378.0,96377.0,0.085]
[1739844953526,1.07153,96378.0,96377.0,0.0853406]
[1739844955318,0.808978,96378.0,96377.0,0.0853406]
[1739844955557,1.740982,96378.0,96377.0,0.0853406]
[1739844955716,0.967641,96378.0,96377.0,0.0853406]
[1739844955950,1.530524,96378.0,96377.0,0.0853406]
[1739844956157,1.228101,96378.0,96377.0,0.0853406]
[1739844956685,0.0001703,96380.0,96377.0,0.0853406]
[1739844956885,0.1558033,96380.0,96377.0,0.13156872]
[1739844957084,0.0001703,96380.0,96379.0,0.155635]
[1739844957285,0.0001703,96380.0,96379.0,0.38613865]
[1739844957446,0.0001703,96380.0,96379.0,0.45049525]
[1739844958449,0.0001703,96380.0,96379.0,0.45449525]
[1739844959292,0.0001703,96380.0,96379.0,0.45749525]
[1739844966291,0.0001703,96380.0,96379.0,0.48049525]
[1739844966498,0.0001703,96380.0,96379.0,0.48083585]
[1739844969712,0.0001703,96380.0,96379.0,0.50023235]
[1739844971677,0.0001703,96380.0,96379.0,0.82873235]
[1739844974154,0.0001703,96380.0,96379.0,0.80933585]
[1739844986685,0.0001703,96380.0,96379.0,0.78633585]
[1739844986885,0.0001703,96380.0,96379.0,0.50270085]
[1739844987023,0.0001703,96380.0,96379.0,0.65833585]
[1739844988534,0.0001703,96380.0,96379.0,0.65533585]
[1739844988960,0.0001703,96380.0,96379.0,0.65333585]
[1739844989349,0.0001703,96380.0,96379.0,0.65633585]
[1739844989745,0.0001703,96380.0,96379.0,0.65333585]
[1739844989971,0.0001703,96380.0,96379.0,0.65633585]
[1739845005974,0.0001703,96380.0,96379.0,0.43634425]
[1739845006142,0.0001703,96380.0,96379.0,0.59197925]
[1739845006578,0.0001703,96380.0,96379.0,0.43634425]
[1739845007408,0.0001703,96380.0,96379.0,0.59197925]
[1739845021360,0.207484,96393.0,96381.0,0.155631]
[1739845021564,1.321172,96392.0,96382.0,0.33811673]
[1739845021765,0.26365,96391.0,96383.0,0.0792]
[1739845021999,0.26365,96391.0,96384.0,0.10250365]
[1739845022150,0.508953,96391.0,96384.0,0.10250365]
[1739845022493,0.664569,96391.0,96385.0,0.07032674]
[1739845022629,0.155616,96391.0,96385.0,0.07032674]
[1739845024079,0.156616,96391.0,96385.0,0.07032674]
[1739845024287,0.155616,96391.0,96385.0,0.07032674]
[1739845024449,0.156616,96391.0,96385.0,0.07032674]
[1739845024661,0.191209,96390.0,96386.0,0.07998308]
[1739845025352,1.0102402,96391.0,96386.0,0.07998308]
[1739845025531,0.130737,96390.0,96386.0,0.07998308]
[1739845025754,0.0001702,96391.0,96386.0,0.07998308]
[1739845026576,0.1557862,96391.0,96386.0,0.07998308]
[1739845026799,0.155619,96389.0,96386.0,0.07998308]
[1739845026999,0.82313,96388.0,96386.0,0.001]
[1739845027210,3.035874,96390.0,96386.0,0.001]
[1739845027363,0.155621,96388.0,96384.0,0.10250365]
[1739845027562,1.730344,96387.0,96386.0,0.002]
[1739845027832,1.885966,96387.0,96386.0,0.002]
[1739845027982,1.456245,96387.0,96384.0,0.10250365]
[1739845028189,1.505655,96388.0,96386.0,0.001]
[1739845028435,1.505655,96388.0,96386.0,0.002]
[1739845028737,1.505655,96388.0,96386.0,0.001]
[1739845028886,1.505655,96388.0,96386.0,0.003]
[1739845029109,1.505655,96388.0,96386.0,0.001]
[1739845029652,1.505655,96388.0,96384.0,0.10250365]
[1739845029787,1.505655,96388.0,96384.0,0.10450365]
[1739845030433,1.398976,96387.0,96384.0,0.10250365]
[1739845030635,1.382099,96386.0,96379.0,0.3288406]
[1739845030789,0.155625,96386.0,96380.0,0.10250365]
[1739845030988,0.870926,96385.0,96380.0,0.10250365]
[1739845031250,0.433507,96384.0,96380.0,0.10250365]
[1739845031659,0.155624,96386.0,96380.0,0.10250365]
[1739845031856,0.403337,96385.0,96380.0,0.10250365]
[1739845032087,0.403337,96385.0,96380.0,0.10350365]
[1739845032216,0.558962,96385.0,96380.0,0.10350365]
[1739845032427,0.274989,96384.0,96380.0,0.10250365]
[1739845032627,0.274989,96384.0,96380.0,0.10450365]
[1739845033063,0.274989,96384.0,96380.0,0.10650365]
[1739845033488,0.155624,96386.0,96380.0,0.10450365]
[1739845033685,0.529705,96385.0,96380.0,0.10450365]
[1739845034211,0.155627,96385.0,96380.0,0.10650365]
[1739845034342,0.469019,96384.0,96380.0,0.10450365]
[1739845034545,0.469019,96384.0,96380.0,0.10250365]
[1739845034742,0.469019,96384.0,96380.0,0.10550365]
[1739845035536,0.899476,96385.0,96380.0,0.10450365]
[1739845035752,0.15563,96383.0,96380.0,0.10450365]
[1739845035964,0.15563,96383.0,96380.0,0.10650365]
[1739845036372,0.15563,96383.0,96380.0,0.10450365]
[1739845036524,0.15563,96383.0,96380.0,0.10250365]
[1739845036897,0.155627,96385.0,96380.0,0.10450365]
[1739845037126,0.2076582,96391.0,96380.0,0.10450365]
[1739845037328,0.155627,96384.0,96380.0,0.10250365]
[1739845037527,0.155632,96381.0,96380.0,0.10250365]
[1739845037731,0.0001702,96390.0,96380.0,0.10250365]
[1739845037732,0.208504,96384.0,96380.0,0.10250365]
[1739845037903,0.0001702,96390.0,96380.0,0.10250365]
[1739845038105,1.733225,96389.0,96380.0,0.10250365]
[1739845038243,0.155628,96384.0,96380.0,0.10250365]
[1739845038444,0.001,96385.0,96380.0,0.10250365]
[1739845038650,0.15563,96382.0,96380.0,0.10250365]
[1739845039681,0.155629,96384.0,96380.0,0.10250365]
[1739845040103,0.0021702,96390.0,96380.0,0.10450365]
[1739845040344,0.155632,96381.0,96380.0,0.10450365]
[1739845040621,0.155632,96381.0,96380.0,0.10250365]
[1739845040988,0.155632,96381.0,96379.0,0.3288406]
[1739845040989,0.155633,96380.0,96379.0,0.3288406]
[1739845041193,0.808974,96380.0,96379.0,0.3288406]
[1739845042975,0.808974,96380.0,96379.0,0.0013406]
[1739845043375,0.808974,96380.0,96379.0,0.0003406]
[1739845043720,0.808974,96380.0,96379.0,0.0013406]
[1739845051152,1.918596,96380.0,96379.0,0.0013406]
[1739845051293,3.144818,96380.0,96379.0,0.0013406]
[1739845051494,2.305622,96380.0,96379.0,0.0013406]
[1739845052009,2.182067,96380.0,96379.0,0.0003406]
[1739845052467,2.182067,96380.0,96379.0,0.0013406]
[1739845052722,2.138843,96380.0,96379.0,0.0013406]
[1739845052899,2.138843,96380.0,96379.0,0.0003406]
[1739845053317,2.138843,96380.0,96379.0,0.0013406]
[1739845054798,3.191507,96380.0,96379.0,0.0003406]
[1739845055236,3.191507,96380.0,96379.0,0.0013406]
[1739845055584,3.193507,96380.0,96379.0,0.0003406]
[1739845055793,3.192507,96380.0,96379.0,0.0003406]
[1739845057747,3.194507,96380.0,96379.0,0.0003406]
[1739845058867,3.180771,96380.0,96379.0,0.0003406]
[1739845059070,2.512415,96380.0,96379.0,0.0003406]
[1739845068266,2.25139831,96380.0,96379.0,0.0003406]
[1739845068487,2.407032,96380.0,96379.0,0.0003406]
[1739845076082,2.405032,96380.0,96379.0,0.0003406]
[1739845076476,2.406032,96380.0,96379.0,0.0003406]
[1739845077029,2.407032,96380.0,96379.0,0.0003406]
[1739845082091,2.557032,96380.0,96379.0,0.0003406]
[1739845082303,2.74906829,96380.0,96379.0,0.0003406]
[1739845082698,2.74806829,96380.0,96379.0,0.0003406]
[1739845082908,2.94906829,96380.0,96379.0,0.0003406]
[1739845083109,0.305637,96378.0,96377.0,0.0003406]
[1739845083259,0.305637,96378.0,96349.0,0.0766]
[1739845083260,0.305654,96367.0,96349.0,0.0766]
[1739845083458,3.600045,96367.0,96349.0,0.0766]
[1739845083685,0.155675,96354.0,96349.0,0.0766]
[1739845083884,2.639818,96354.0,96349.0,0.0766]
[1739845084091,2.62802,96354.0,96349.0,0.0766]
[1739845084291,2.262559,96354.0,96349.0,0.0766]
[1739845084509,2.262559,96354.0,96353.0,0.000472]
[1739845085366,2.262559,96354.0,96353.0,0.001472]
[1739845085538,2.262559,96354.0,96353.0,0.000472]
[1739845086143,2.262559,96354.0,96353.0,0.002472]
[1739845086523,2.262559,96354.0,96353.0,0.000472]
[1739845087232,2.262559,96354.0,96353.0,0.001472]
[1739845090890,2.28760718,96354.0,96353.0,0.001472]
[1739845091294,2.262559,96354.0,96353.0,0.001472]
[1739845095396,2.00511,96354.0,96353.0,0.001472]
[1739845095837,2.160785,96354.0,96353.0,0.001472]
[1739845099012,0.601859,96354.0,96353.0,0.001472]
[1739845099250,2.984392,96354.0,96353.0,0.001472]
[1739845101113,3.134392,96354.0,96353.0,0.001472]
[1739845102152,3.134392,96354.0,96353.0,0.000472]
[1739845102554,3.136392,96354.0,96353.0,0.000472]
[1739845102976,3.137392,96354.0,96353.0,0.000472]
[1739845103410,3.136392,96354.0,96353.0,0.000472]
[1739845104700,3.139392,96354.0,96353.0,0.000472]
[1739845104931,3.15487333,96354.0,96353.0,0.000472]
[1739845105942,3.139392,96354.0,96353.0,0.000472]
[1739845107899,3.1397326,96354.0,96353.0,0.000472]
[1739845112199,0.15,96353.0,96344.0,0.0818]
[1739845112318,2.978717,96353.0,96352.0,0.00038614]
[1739845113527,2.980717,96353.0,96352.0,0.00038614]
[1739845113731,2.982717,96353.0,96352.0,0.00038614]
[1739845114878,2.982717,96353.0,96339.0,0.0454406]
[1739845114879,0.305685,96348.0,96339.0,0.0003406]
[1739845115085,0.18033264,96347.0,96329.0,0.0497]
[1739845115291,0.155714,96330.0,96328.0,0.0779]
[1739845115591,0.1587,96335.0,96328.0,8.208e-05]
[1739845115592,2.984433,96329.0,96328.0,8.208e-05]
[1739845116013,3.134433,96329.0,96328.0,8.208e-05]
[1739845116214,3.16112661,96329.0,96328.0,8.208e-05]
[1739845116648,3.18158617,96329.0,96328.0,8.208e-05]
[1739845116854,3.21391881,96329.0,96328.0,8.208e-05]
[1739845117065,3.33568756,96329.0,96328.0,8.208e-05]
[1739845117866,3.36909922,96329.0,96328.0,8.208e-05]
[1739845118020,0.155732,96319.0,96314.0,0.0823]
[1739845118230,0.155732,96319.0,96318.0,0.00047221]
[1739845118642,2.984449,96319.0,96318.0,0.00047221]
[1739845118858,0.601916,96319.0,96318.0,0.00047221]
[1739845119062,2.985449,96319.0,96318.0,0.00047221]
[1739845119937,3.01000172,96319.0,96318.0,0.00047221]
[1739845120671,3.16000172,96319.0,96318.0,0.00047221]
[1739845121326,3.15900172,96319.0,96318.0,0.00047221]
[1739845121529,3.16100172,96319.0,96318.0,0.00047221]
[1739845121960,3.17726818,96319.0,96318.0,0.00047221]
[1739845122591,3.16100172,96319.0,96318.0,0.00047221]
[1739845122791,3.16300172,96319.0,96318.0,0.00047221]
[1739845124615,3.19333436,96319.0,96318.0,0.00047221]
[1739845125071,3.18933436,96319.0,96318.0,0.00047221]
[1739845125263,3.19533436,96319.0,96318.0,0.00047221]
[1739845125711,3.19033436,96319.0,96318.0,0.00047221]
[1739845125885,3.19433436,96319.0,96318.0,0.00047221]
[1739845126085,3.16800172,96319.0,96318.0,0.00047221]
[1739845126619,3.19833436,96319.0,96318.0,0.00047221]
[1739845127002,3.21460157,96319.0,96318.0,0.00047221]
[1739845127977,3.18426893,96319.0,96318.0,0.00047221]
[1739845128384,3.21460157,96319.0,96318.0,0.00047221]
[1739845128789,3.18426893,96319.0,96318.0,0.00047221]
[1739845132034,3.09058393,96319.0,96318.0,0.00047221]
[1739845133229,3.12091657,96319.0,96318.0,0.00047221]
[1739845133432,3.09058393,96319.0,96318.0,0.00047221]
[1739845135666,2.93829221,96319.0,96318.0,0.00047221]
[1739845135871,1.511217,96319.0,96318.0,0.05007221]
[1739845136700,1.507217,96319.0,96318.0,0.05007221]
[1739845136904,1.511217,96319.0,96318.0,0.05007221]
[1739845137261,1.502217,96319.0,96318.0,0.05007221]
[1739845137658,1.504217,96319.0,96318.0,0.05007221]
[1739845137869,1.503217,96319.0,96318.0,0.05007221]
[1739845138067,1.60572065,96319.0,96318.0,0.05007221]
[1739845138233,1.60672065,96319.0,96318.0,0.05007221]
[1739845138436,1.504217,96319.0,96318.0,0.05007221]
[1739845138836,1.503217,96319.0,96318.0,0.05007221]
[1739845139261,1.504217,96319.0,96318.0,0.05007221]
[1739845139465,1.503217,96319.0,96318.0,0.05007221]
[1739845139748,1.60672065,96319.0,96318.0,0.05007221]
[1739845140155,1.62298744,96319.0,96318.0,0.05007221]
[1739845140357,1.52048379,96319.0,96318.0,0.05007221]
[1739845142508,1.504217,96319.0,96318.0,0.05007221]
[1739845144649,1.503217,96319.0,96318.0,0.05007221]
[1739845144852,1.504217,96319.0,96318.0,0.05007221]
[1739845145571,1.503217,96319.0,96318.0,0.05007221]
[1739845146289,0.659231,96319.0,96318.0,0.05007221]
[1739845146588,0.306732,96319.0,96318.0,0.05007221]
[1739845146826,3.041764,96319.0,96318.0,0.05007221]
[1739845147044,3.041764,96319.0,96318.0,0.00047221]
[1739845147221,3.14326765,96319.0,96318.0,0.00047221]
[1739845147377,3.14426765,96319.0,96318.0,0.00047221]
[1739845148779,3.14326765,96319.0,96318.0,0.00047221]
[1739845149863,3.28010394,96319.0,96318.0,0.00047221]
[1739845150232,3.27710394,96319.0,96318.0,0.00047221]
[1739845150489,3.27610394,96319.0,96318.0,0.00047221]
[1739845150648,3.28010394,96319.0,96318.0,0.00047221]
[1739845151002,3.28410394,96319.0,96318.0,0.00047221]
[1739845151248,0.207662,96310.0,96292.0,0.0785658]
[1739845151430,0.155774,96293.0,96292.0,0.0785658]
[1739845151625,2.890806,96293.0,96292.0,0.0785658]
[1739845152842,2.890806,96293.0,96292.0,0.0805658]
[1739845153746,2.890806,96293.0,96292.0,0.0785658]
[1739845154086,2.890806,96293.0,96292.0,0.0805658]
[1739845154539,2.890806,96293.0,96292.0,0.0807361]
[1739845154749,2.94550348,96293.0,96292.0,0.0807361]
[1739845154924,2.94550348,96293.0,96292.0,0.0787361]
[1739845155353,2.890806,96293.0,96292.0,0.0787361]
[1739845156652,2.782762,96293.0,96292.0,0.0787361]
[1739845157051,2.79903169,96293.0,96292.0,0.0787361]
[1739845157949,0.52454269,96293.0,96292.0,0.0787361]
[1739845158149,2.90707569,96293.0,96292.0,0.0787361]
[1739845158553,3.00957934,96293.0,96292.0,0.0787361]
[1739845161983,3.00957934,96293.0,96292.0,0.0006361]
[1739845162505,2.99330965,96293.0,96292.0,0.0006361]
[1739845163560,3.2458133,96293.0,96292.0,0.0006361]
[1739845163671,0.15579,96283.0,96282.0,0.0001703]
[1739845163884,2.890822,96283.0,96282.0,0.0001703]
[1739845164288,3.040822,96283.0,96282.0,0.0001703]
[1739845164515,3.07115464,96283.0,96282.0,0.0001703]
[1739845164872,3.07115464,96283.0,96282.0,0.00060968]
[1739845165289,3.06426243,96283.0,96282.0,0.00060968]
[1739845165644,3.16676608,96283.0,96282.0,0.00060968]
[1739845165847,3.19709872,96283.0,96282.0,0.00060968]
[1739845166043,3.19809872,96283.0,96282.0,0.00060968]
[1739845166686,3.19909872,96283.0,96282.0,0.00060968]
[1739845166884,3.21537083,96283.0,96282.0,0.00060968]
[1739845167938,3.21437083,96283.0,96282.0,0.00060968]
[1739845168133,3.24778249,96283.0,96282.0,0.00060968]
[1739845168507,3.24678249,96283.0,96282.0,0.00060968]
[1739845168727,3.21644985,96283.0,96282.0,0.00060968]
[1739845168882,3.21744985,96283.0,96282.0,0.00060968]
[1739845169085,3.18403819,96283.0,96282.0,0.00060968]
[1739845169499,3.18503819,96283.0,96282.0,0.00060968]
[1739845169728,3.18303819,96283.0,96282.0,0.00060968]
[1739845171182,3.08353454,96283.0,96282.0,0.00060968]
[1739845171588,3.08653454,96283.0,96282.0,0.00060968]
[1739845172540,3.07026243,96283.0,96282.0,0.00060968]
[1739845174933,0.68472943,96283.0,96282.0,0.00060968]
[1739845175390,3.07026243,96283.0,96282.0,0.00060968]
[1739845176040,3.16976608,96283.0,96282.0,0.00060968]
[1739845176528,3.17276608,96283.0,96282.0,0.00060968]
[1739845176729,3.07026243,96283.0,96282.0,0.00060968]
[1739845178520,1.72729143,96283.0,96282.0,0.00060968]
[1739845179124,1.48085643,96283.0,96282.0,0.08110968]
[1739845179328,1.47785643,96283.0,96282.0,0.08110968]
[1739845179527,1.58336008,96283.0,96282.0,0.08110968]
[1739845180136,1.58036008,96283.0,96282.0,0.08110968]
[1739845180342,1.57936008,96283.0,96282.0,0.08110968]
[1739845180867,1.58136008,96283.0,96282.0,0.08110968]
[1739845181972,1.58136008,96283.0,96282.0,0.07610968]
[1739845184693,1.57936008,96283.0,96282.0,0.07610968]
[1739845185096,1.58136008,96283.0,96282.0,0.07610968]
[1739845185306,0.78623308,96283.0,96282.0,0.07610968]
[1739845185505,3.16876608,96283.0,96282.0,0.07610968]
[1739845185707,3.17076608,96283.0,96282.0,0.07610968]
[1739845185911,3.16876608,96283.0,96282.0,0.07610968]
[1739845186618,3.17076608,96283.0,96282.0,0.07610968]
[1739845186818,3.06550408,96283.0,96282.0,0.07610968]
[1739845187820,2.90770708,96283.0,96282.0,0.07610968]
[1739845188992,0.155806,96273.0,96272.0,0.1239]
[1739845189310,1.3108667,96273.0,96272.0,0.1239]
[1739845189514,1.2968307,96273.0,96272.0,0.1239]
[1739845190065,1.239703,96273.0,96272.0,0.1239]
[1739845192762,1.239703,96273.0,96272.0,0.0758]
[1739845192965,0.155808,96272.0,96267.0,0.0796]
[1739845193173,2.89084,96272.0,96267.0,0.0796]
[1739845193388,2.91506665,96272.0,96267.0,0.0796]
[1739845193619,2.85794665,96272.0,96267.0,0.0796]
[1739845194230,2.49447665,96272.0,96267.0,0.0796]
[1739845194393,2.41022465,96272.0,96267.0,0.0796]
[1739845194596,2.35371565,96272.0,96267.0,0.0796]
[1739845194800,2.30173465,96272.0,96267.0,0.0796]
[1739845195405,2.29973465,96272.0,96267.0,0.0796]
[1739845195817,2.30073465,96272.0,96267.0,0.0796]
[1739845196023,0.61181065,96272.0,96267.0,0.0796]
[1739845196221,0.61281065,96272.0,96267.0,0.0796]
[1739845196461,2.401495,96272.0,96267.0,0.0796]
[1739845196669,2.369631,96272.0,96267.0,0.0796]
[1739845196820,2.25613,96272.0,96267.0,0.0796]
[1739845197427,2.236789,96272.0,96267.0,0.0796]
[1739845198807,2.080981,96272.0,96267.0,0.0796]
[1739845198986,0.492877,96272.0,96267.0,0.0796]
[1739845199543,0.002,96272.0,96271.0,0.0818]
[1739845199727,0.05904,96272.0,96271.0,0.0818]
[1739845199976,0.272123,96272.0,96271.0,0.0818]
[1739845200189,0.215083,96272.0,96271.0,0.0818]
[1739845200566,0.165636,96272.0,96271.0,0.0818]
[1739845200770,0.276455,96272.0,96271.0,0.0818]
[1739845204522,0.276455,96272.0,96271.0,0.0819704]
[1739845206289,0.2052,96276.0,96271.0,0.0819704]
[1739845206290,0.155807,96273.0,96271.0,0.0819704]
[1739845206493,0.447908,96272.0,96271.0,0.0819704]
[1739845206751,0.155807,96273.0,96271.0,0.0819704]
[1739845206945,0.469417,96272.0,96271.0,0.0819704]
[1739845207962,0.457454,96272.0,96271.0,0.0819704]
[1739845208136,0.402511,96272.0,96271.0,0.0819704]
[1739845209126,0.0003408,96292.0,96276.0,0.1301]
[1739845209393,0.0003408,96292.0,96278.0,0.0776]
[1739845209601,0.0003408,96292.0,96279.0,0.10250365]
[1739845209803,0.0003408,96292.0,96280.0,0.0776]
[1739845209980,0.0003408,96292.0,96281.0,0.10250365]
[1739845210159,0.0003408,96292.0,96282.0,0.0776]
[1739845210522,0.02578123,96283.0,96282.0,0.0776]
[1739845210723,0.02578123,96283.0,96282.0,0.127]
[1739845211019,0.02378123,96283.0,96282.0,0.127]
[1739845211613,0.02578123,96283.0,96282.0,0.127]
[1739845211945,0.02378123,96283.0,96282.0,0.127]
[1739845212365,0.02378123,96283.0,96282.0,0.129]
[1739845212766,0.02378123,96283.0,96282.0,0.131]
[1739845215712,0.1587,96299.0,96282.0,0.11310347]
[1739845215919,0.155773,96294.0,96283.0,0.0788]
[1739845216124,0.370369,96293.0,96283.0,0.0788]
[1739845216331,0.155776,96292.0,96283.0,0.0788]
[1739845216709,0.983642,96291.0,96283.0,0.0788]
[1739845216968,1.336141,96291.0,96283.0,0.0788]
[1739845217175,0.983642,96291.0,96283.0,0.0788]
[1739845217379,0.352499,96290.0,96283.0,0.0788]
[1739845217581,0.001,96292.0,96283.0,0.0788]
[1739845217735,1.389635,96291.0,96283.0,0.0788]
[1739845217940,1.355863,96290.0,96283.0,0.0788]
[1739845218135,1.3607588,96291.0,96283.0,0.0788]
[1739845218360,1.148461,96290.0,96283.0,0.0788]
[1739845218691,1.136377,96289.0,96283.0,0.0788]
[1739845218892,1.249328,96290.0,96283.0,0.0788]
[1739845219886,0.483602,96289.0,96283.0,0.0788]
[1739845220095,0.352499,96289.0,96283.0,0.0798]
[1739845220252,0.0003408,96291.0,96283.0,0.0798]
[1739845220453,0.352499,96289.0,96283.0,0.0798]
[1739845220677,0.141556,96289.0,96283.0,0.0798]
[1739845220880,0.10534,96289.0,96283.0,0.0798]
[1739845221078,0.145902,96290.0,96283.0,0.0788]
[1739845221258,0.482524,96290.0,96283.0,0.0788]
[1739845221719,0.482524,96290.0,96282.0,0.0494]
[1739845221720,0.0003408,96291.0,96288.0,0.0801]
[1739845221972,0.0003408,96291.0,96289.0,0.10250365]
[1739845222178,0.110601,96290.0,96289.0,0.10250365]
[1739845222609,0.110601,96290.0,96288.0,0.0801]
[1739845222826,0.618879,96290.0,96288.0,0.0801]
[1739845223026,1.66285,96289.0,96288.0,0.0801]
[1739845223205,1.531492,96289.0,96288.0,0.0801]
[1739845223603,1.485906,96289.0,96288.0,0.0801]
[1739845223820,1.307824,96289.0,96288.0,0.0801]
[1739845223973,1.639399,96290.0,96288.0,0.0801]
[1739845224172,1.614699,96290.0,96288.0,0.0801]
[1739845224409,0.15579,96283.0,96282.0,0.0494]
[1739845224638,0.155795,96281.0,96279.0,0.0786]
[1739845226225,0.155791,96283.0,96279.0,0.0786]
[1739845226380,0.155794,96281.0,96279.0,0.0786]
[1739845226583,1.556356,96280.0,96272.0,0.0753]
[1739845226783,1.176115,96279.0,96272.0,0.0753]
[1739845227196,1.730256,96282.0,96272.0,0.0753]
[1739845227395,2.082755,96282.0,96272.0,0.0753]
[1739845227826,0.155793,96281.0,96272.0,0.0753]
[1739845228024,2.075753,96281.0,96272.0,0.0753]
[1739845228255,0.155797,96279.0,96272.0,0.0753]
[1739845228384,1.278046,96278.0,96272.0,0.0753]
[1739845229248,1.835882,96280.0,96272.0,0.0763]